fUST/lending_fUST_20250819
["ID","MTS","AMOUNT","RATE_DAILY","PERIOD"]
[380097230,1755540649141,-1323.13,0.00020547,2]
[380097231,1755540649151,-1226.57,0.00020547,2]
[380097232,1755540649160,-480.0,0.00020547,2]
[380097233,1755540649169,-480.0,0.00020547,2]
[380097234,1755540649179,-480.0,0.00020547,2]
[380097235,1755540649190,-480.0,0.00020547,2]
[380097236,1755540649199,-480.0,0.00020547,2]
[380097237,1755540649209,-407.61506618,0.00020547,2]
[380097238,1755540649219,-578.32,0.00020547,2]
[380097239,1755540649229,-578.28,0.00020547,2]
[380097240,1755540649238,-878.1,0.00020547,2]
[380097241,1755540649247,-1482.03,0.00020547,2]
[380097242,1755540649257,-862.45,0.00020547,2]
[380097243,1755540649266,-480.0,0.00020547,2]
[380097244,1755540649275,-1075.46,0.00020547,2]
[380097245,1755540649285,-480.0,0.00020547,2]
[380097246,1755540649294,-520.78,0.00020547,2]
[380097247,1755540649303,-480.0,0.00020547,2]
[380097248,1755540649313,-528.31,0.00020547,2]
[380097249,1755540649322,-485.74,0.00020547,2]
[380097250,1755540649331,-480.0,0.00020547,2]
[380097251,1755540649342,-480.0,0.00020547,2]
[380097252,1755540649351,-480.0,0.00020547,2]
[380097253,1755540649361,-705.58,0.00020547,2]
[380097254,1755540649380,-480.0,0.00020547,2]
[380097255,1755540649389,-480.0,0.00020547,2]
[380097256,1755540649399,-480.0,0.00020547,2]
[380097257,1755540649408,-234.39,0.00020547,2]
[380097258,1755540649418,-480.0,0.00020547,2]
[380097259,1755540649427,-480.0,0.00020547,2]
[380097260,1755540649436,-151.0,0.000206,3]
[380097261,1755540649447,-4773.85318233,0.00020731,2]
[380097262,1755540649457,-480.0,0.00020821,2]
[380097263,1755540649466,-480.0,0.00020821,2]
[380097264,1755540649477,-480.0,0.00020821,2]
[380097265,1755540649486,-480.0,0.00020821,2]
[380097266,1755540649495,-480.0,0.00020821,2]
[380097267,1755540649505,-480.0,0.00020821,2]
[380097268,1755540649514,-492.16,0.00020821,2]
[380097269,1755540649524,-480.0,0.00020821,2]
[380097270,1755540649534,-480.0,0.00020821,2]
[380097271,1755540649545,-480.0,0.00020821,2]
[380097272,1755540649554,-379.69328245,0.00020821,2]
[380097273,1755540649568,-480.0,0.00020821,2]
[380097274,1755540649585,-480.0,0.00020821,2]
[380097275,1755540649595,-480.0,0.00020821,2]
[380097276,1755540649605,-480.0,0.00020821,2]
[380097277,1755540649614,-480.0,0.00020821,2]
[380097278,1755540649624,-480.0,0.00020821,2]
[380097279,1755540649633,-421.55,0.00020821,2]
[380097280,1755540649642,-525.31,0.00020821,2]
[380097281,1755540649652,-480.0,0.00020821,2]
[380097282,1755540649661,-1144.44,0.00020821,2]
[380097283,1755540649671,-2196.43,0.00020821,2]
[380097284,1755540649681,-509.88,0.00020821,2]
[380097285,1755540649691,-480.0,0.00020821,2]
[380097286,1755540649700,-480.0,0.00020821,2]
[380097287,1755540649709,-2460.24,0.00020821,2]
[380097288,1755540649719,-2037.63,0.00020821,2]
[380097289,1755540649728,-1025.25,0.00020821,2]
[380097290,1755540649737,-480.0,0.00020821,2]
[380097291,1755540649747,-480.0,0.00020821,2]
[380097292,1755540649756,-956.52,0.00020821,2]
[380097293,1755540649766,-480.0,0.00020821,2]
[380097294,1755540649775,-912.8,0.00020821,2]
[380097295,1755540649785,-1865.16,0.00020821,2]
[380097296,1755540649796,-3154.44,0.00020821,2]
[380097297,1755540649807,-480.0,0.00020821,2]
[380097298,1755540649817,-1323.13,0.00020821,2]
[380097299,1755540649827,-1226.57,0.00020821,2]
[380097300,1755540649837,-480.0,0.00020821,2]
[380097301,1755540649847,-480.0,0.00020821,2]
[380097302,1755540649857,-480.0,0.00020821,2]
[380097303,1755540649866,-480.0,0.00020821,2]
[380097304,1755540649876,-480.0,0.00020821,2]
[380097305,1755540649886,-578.28,0.00020821,2]
[380097306,1755540649895,-578.32,0.00020821,2]
[380097307,1755540649905,-878.1,0.00020821,2]
[380097308,1755540649915,-1482.03,0.00020821,2]
[380097309,1755540649925,-862.45,0.00020821,2]
[380097310,1755540649936,-480.0,0.00020821,2]
[380097311,1755540649945,-1075.46,0.00020821,2]
[380097312,1755540649954,-480.0,0.00020821,2]
[380097313,1755540649964,-520.78,0.00020821,2]
[380097314,1755540649974,-480.0,0.00020821,2]
[380097315,1755540649983,-528.31,0.00020821,2]
[380097316,1755540649992,-485.74,0.00020821,2]
[380097317,1755540650002,-480.0,0.00020821,2]
[380097318,1755540650012,-480.0,0.00020821,2]
[380097319,1755540650021,-480.0,0.00020821,2]
[380097320,1755540650031,-705.58,0.00020821,2]
[380097321,1755540650040,-480.0,0.00020821,2]
[380097322,1755540650049,-480.0,0.00020821,2]
[380097323,1755540650059,-480.0,0.00020821,2]
[380097324,1755540650069,-480.0,0.00020821,2]
[380097325,1755540650078,-449.88,0.00020821,2]
[380097326,1755540650088,-544.29,0.00020882,2]
[380097327,1755540650097,-1680.0,0.00020887,2]
[380097328,1755540650107,-420.0,0.00020898,2]
[380097329,1755540650117,-706.916,0.00020899,2]
[380097330,1755540650127,-1680.0,0.00020999,2]
[380097331,1755540650136,-3000.0,0.00021,2]
[380097332,1755540650145,-260.0,0.00021009,2]
[380097333,1755540650154,-3000.0,0.0002101,2]
[380097334,1755540650164,-434.64677967,0.00021017,2]
[380097335,1755540650173,-3000.0,0.0002102,2]
[380097336,1755540650183,-3000.0,0.0002103,2]
[380097337,1755540650192,-179.74686304,0.0002103,2]
[380097338,1755540650202,-3000.0,0.0002104,2]
[380097339,1755540650211,-3000.0,0.0002105,2]
[380097340,1755540650220,-3000.0,0.0002106,2]
[380097341,1755540650229,-591.82785039,0.00021068,2]
[380097342,1755540650239,-3000.0,0.0002107,2]
[380097343,1755540650248,-4630.154197,0.0002108,2]
[380097344,1755540650257,-480.0,0.00021095,2]
[380097345,1755540650266,-480.0,0.00021095,2]
[380097346,1755540650276,-480.0,0.00021095,2]
[380097347,1755540650286,-480.0,0.00021095,2]
[380097348,1755540650295,-480.0,0.00021095,2]
[380097349,1755540650304,-471.00002275,0.00021095,2]
[380097350,1755540650314,-492.16,0.00021095,2]
[380097351,1755540650323,-480.0,0.00021095,2]
[380097352,1755540650332,-480.0,0.00021095,2]
[380097353,1755540650342,-480.0,0.00021095,2]
[380097354,1755540650351,-480.0,0.00021095,2]
[380097355,1755540650360,-480.0,0.00021095,2]
[380097356,1755540650370,-332.22,0.00021095,2]
[380097357,1755540650379,-480.0,0.00021095,2]
[380097358,1755540650390,-480.0,0.00021095,2]
[380097359,1755540650399,-480.0,0.00021095,2]
[380097360,1755540650409,-525.31,0.00021095,2]
[380097361,1755540650418,-480.0,0.00021095,2]
[380097362,1755540650428,-1144.44,0.00021095,2]
[380097363,1755540650437,-2196.43,0.00021095,2]
[380097364,1755540650447,-509.88,0.00021095,2]
[380097365,1755540650456,-480.0,0.00021095,2]
[380097366,1755540650466,-480.0,0.00021095,2]
[380097367,1755540650475,-2460.24,0.00021095,2]
[380097368,1755540650485,-2037.63,0.00021095,2]
[380097369,1755540650494,-1025.25,0.00021095,2]
[380097370,1755540650503,-480.0,0.00021095,2]
[380097371,1755540650513,-480.0,0.00021095,2]
[380097372,1755540650522,-956.52,0.00021095,2]
[380097373,1755540650532,-480.0,0.00021095,2]
[380097374,1755540650542,-912.8,0.00021095,2]
[380097375,1755540650552,-1865.16,0.00021095,2]
[380097376,1755540650561,-3154.44,0.00021095,2]
[380097377,1755540650571,-183.64378739,0.00021095,2]
[380097378,1755540650580,-1323.13,0.00021095,2]
[380097379,1755540650589,-1226.57,0.00021095,2]
[380097380,1755540650682,-480.0,0.00021095,2]
[380097381,1755540650691,-480.0,0.00021095,2]
[380097382,1755540650701,-480.0,0.00021095,2]
[380097383,1755540650710,-480.0,0.00021095,2]
[380097384,1755540650719,-480.0,0.00021095,2]
[380097385,1755540650728,-578.28,0.00021095,2]
[380097386,1755540650737,-578.32,0.00021095,2]
[380097387,1755540650746,-878.1,0.00021095,2]
[380097388,1755540650755,-1482.03,0.00021095,2]
[380097389,1755540650765,-862.45,0.00021095,2]
[380097390,1755540650774,-480.0,0.00021095,2]
[380097391,1755540650783,-480.0,0.00021095,2]
[380097392,1755540650792,-1075.46,0.00021095,2]
[380097393,1755540650804,-520.78,0.00021095,2]
[380097394,1755540650813,-480.0,0.00021095,2]
[380097395,1755540650822,-528.31,0.00021095,2]
[380097396,1755540650831,-485.74,0.00021095,2]
[380097397,1755540650842,-480.0,0.00021095,2]
[380097398,1755540650851,-480.0,0.00021095,2]
[380097399,1755540650860,-480.0,0.00021095,2]
[380097400,1755540650869,-705.58,0.00021095,2]
[380097401,1755540650878,-480.0,0.00021095,2]
[380097402,1755540650887,-462.44633684,0.00021095,2]
[380097403,1755540650897,-480.0,0.00021095,2]
[380097404,1755540650906,-480.0,0.00021095,2]
[380097405,1755540650916,-260.0,0.00021129,2]
[380097406,1755540650924,-4773.85318233,0.00021147,2]
[380097407,1755540650934,-168.0,0.00021154,2]
[380097408,1755540650943,-151.0,0.000212,4]
[380097409,1755540650951,-972.0,0.00021221,2]
[380097410,1755540650960,-2153.0,0.00021221,2]
[380097411,1755540650969,-637.0,0.00021221,2]
[380097412,1755540650978,-260.0,0.0002129,2]
[380097413,1755540650988,-260.0,0.00021301,2]
[380097414,1755540650997,-500.0,0.00021318,2]
[380097415,1755540651006,-500.0,0.00021318,2]
[380097416,1755540651015,-500.0,0.00021318,2]
[380097417,1755540651025,-500.0,0.00021318,2]
[380097418,1755540651034,-500.0,0.00021318,2]
[380097419,1755540651043,-500.0,0.00021318,2]
[380097420,1755540651052,-500.0,0.00021318,2]
[380097421,1755540651061,-500.0,0.00021318,2]
[380097422,1755540651071,-500.0,0.00021318,2]
[380097423,1755540651080,-260.0,0.00021321,2]
[380097424,1755540651089,-168.0,0.00021343,2]
[380097425,1755540651099,-260.0,0.00021366,2]
[380097426,1755540651108,-480.0,0.00021369,2]
[380097427,1755540651117,-480.0,0.00021369,2]
[380097428,1755540651126,-480.0,0.00021369,2]
[380097429,1755540651135,-283.32,0.00021369,2]
[380097430,1755540651145,-480.0,0.00021369,2]
[380097431,1755540651154,-492.16,0.00021369,2]
[380097432,1755540651164,-182.06,0.00021369,2]
[380097433,1755540651173,-480.0,0.00021369,2]
[380097434,1755540651181,-432.88,0.00021369,2]
[380097435,1755540651189,-480.0,0.00021369,2]
[380097436,1755540651197,-511.09,0.00021369,2]
[380097437,1755540651206,-480.0,0.00021369,2]
[380097438,1755540651215,-480.0,0.00021369,2]
[380097439,1755540651225,-480.0,0.00021369,2]
[380097440,1755540651234,-525.31,0.00021369,2]
[380097441,1755540651242,-305.92,0.00021369,2]
[380097442,1755540651252,-1144.44,0.00021369,2]
[380097443,1755540651262,-2196.43,0.00021369,2]
[380097444,1755540651272,-509.88,0.00021369,2]
[380097445,1755540651281,-480.0,0.00021369,2]
[380097446,1755540651291,-480.0,0.00021369,2]
[380097447,1755540651300,-2460.24,0.00021369,2]
[380097448,1755540651310,-1025.25,0.00021369,2]
[380097449,1755540651321,-2037.63,0.00021369,2]
[380097450,1755540651330,-480.0,0.00021369,2]
[380097451,1755540651339,-480.0,0.00021369,2]
[380097452,1755540651349,-956.52,0.00021369,2]
[380097453,1755540651359,-480.0,0.00021369,2]
[380097454,1755540651369,-912.8,0.00021369,2]
[380097455,1755540651378,-1865.16,0.00021369,2]
[380097456,1755540651388,-3154.44,0.00021369,2]
[380097457,1755540651397,-1323.13,0.00021369,2]
[380097458,1755540651407,-1226.57,0.00021369,2]
[380097459,1755540651417,-480.0,0.00021369,2]
[380097460,1755540651427,-480.0,0.00021369,2]
[380097461,1755540651436,-480.0,0.00021369,2]
[380097462,1755540651446,-480.0,0.00021369,2]
[380097463,1755540651456,-480.0,0.00021369,2]
[380097464,1755540651465,-578.28,0.00021369,2]
[380097465,1755540651475,-578.32,0.00021369,2]
[380097466,1755540651483,-878.1,0.00021369,2]
[380097467,1755540651493,-1482.03,0.00021369,2]
[380097468,1755540651502,-862.45,0.00021369,2]
[380097469,1755540651512,-480.0,0.00021369,2]
[380097470,1755540651522,-480.0,0.00021369,2]
[380097471,1755540651531,-1075.46,0.00021369,2]
[380097472,1755540651541,-520.78,0.00021369,2]
[380097473,1755540651550,-480.0,0.00021369,2]
[380097474,1755540651560,-528.31,0.00021369,2]
[380097475,1755540651569,-485.74,0.00021369,2]
[380097476,1755540651579,-480.0,0.00021369,2]
[380097477,1755540651589,-480.0,0.00021369,2]
[380097478,1755540651598,-480.0,0.00021369,2]
[380097479,1755540651607,-705.58,0.00021369,2]
[380097480,1755540651616,-480.0,0.00021369,2]
[380097481,1755540651626,-480.0,0.00021369,2]
[380097482,1755540651635,-480.0,0.00021369,2]
[380097483,1755540651645,-151.0,0.000214,3]
[380097484,1755540651654,-4941.68,0.000215,2]
[380097485,1755540651663,-720.0,0.00021515,20]
[380097486,1755540651673,-360.0,0.00021557,2]
[380097487,1755540651682,-4773.85318233,0.00021562,2]
[380097488,1755540651692,-182.0,0.00021589,5]
[380097489,1755540651701,-151.0,0.000216,4]
[380097490,1755540651710,-480.0,0.00021643,2]
[380097491,1755540651719,-480.0,0.00021643,2]
[380097492,1755540651728,-480.0,0.00021643,2]
[380097493,1755540651737,-480.0,0.00021643,2]
[380097494,1755540651747,-492.16,0.00021643,2]
[380097495,1755540651756,-480.0,0.00021643,2]
[380097496,1755540651765,-480.0,0.00021643,2]
[380097497,1755540651774,-480.0,0.00021643,2]
[380097498,1755540651784,-480.0,0.00021643,2]
[380097499,1755540651797,-480.0,0.00021643,2]
[380097500,1755540651808,-525.31,0.00021643,2]
[380097501,1755540651818,-1144.44,0.00021643,2]
[380097502,1755540651827,-2196.43,0.00021643,2]
[380097503,1755540651837,-509.88,0.00021643,2]
[380097504,1755540651846,-480.0,0.00021643,2]
[380097505,1755540651855,-480.0,0.00021643,2]
[380097506,1755540651865,-2460.24,0.00021643,2]
[380097507,1755540651880,-1025.25,0.00021643,2]
[380097508,1755540651889,-2037.63,0.00021643,2]
[380097509,1755540651899,-480.0,0.00021643,2]
[380097510,1755540651908,-480.0,0.00021643,2]
[380097511,1755540651918,-956.52,0.00021643,2]
[380097512,1755540651927,-480.0,0.00021643,2]
[380097513,1755540651937,-912.8,0.00021643,2]
[380097514,1755540651946,-1865.16,0.00021643,2]
[380097515,1755540651956,-3154.44,0.00021643,2]
[380097516,1755540651966,-1323.13,0.00021643,2]
[380097517,1755540651975,-1226.57,0.00021643,2]
[380097518,1755540651985,-480.0,0.00021643,2]
[380097519,1755540651994,-480.0,0.00021643,2]
[380097520,1755540652003,-480.0,0.00021643,2]
[380097521,1755540652012,-480.0,0.00021643,2]
[380097522,1755540652022,-480.0,0.00021643,2]
[380097523,1755540652030,-578.28,0.00021643,2]
[380097524,1755540652038,-578.32,0.00021643,2]
[380097525,1755540652048,-878.1,0.00021643,2]
[380097526,1755540652059,-1482.03,0.00021643,2]
[380097527,1755540652070,-862.45,0.00021643,2]
[380097528,1755540652079,-480.0,0.00021643,2]
[380097529,1755540652089,-480.0,0.00021643,2]
[380097530,1755540652099,-1075.46,0.00021643,2]
[380097531,1755540652108,-520.78,0.00021643,2]
[380097532,1755540652118,-480.0,0.00021643,2]
[380097533,1755540652128,-528.31,0.00021643,2]
[380097534,1755540652137,-485.74,0.00021643,2]
[380097535,1755540652147,-238.05,0.00021643,2]
[380097536,1755540652156,-480.0,0.00021643,2]
[380097537,1755540652165,-480.0,0.00021643,2]
[380097538,1755540652174,-705.58,0.00021643,2]
[380097539,1755540652184,-480.0,0.00021643,2]
[380097540,1755540652193,-480.0,0.00021643,2]
[380097541,1755540652202,-480.0,0.00021643,2]
[380097542,1755540652211,-260.0,0.00021656,2]
[380097543,1755540652220,-1400.0,0.00021673,2]
[380097544,1755540652229,-168.0,0.0002176,2]
[380097545,1755540652238,-500.0,0.00021782,2]
[380097546,1755540652246,-168.0,0.00021801,2]
[380097547,1755540652255,-816.43,0.00021831,2]
[380097548,1755540652264,-500.0,0.00021866,2]
[380097549,1755540652273,-1000.0,0.00021866,2]
[380097550,1755540652283,-1000.0,0.00021866,2]
[380097551,1755540652292,-1000.0,0.00021866,2]
[380097552,1755540652301,-1000.0,0.00021866,2]
[380097553,1755540652311,-500.0,0.00021866,2]
[380097554,1755540652391,-1000.0,0.00021866,2]
[380097555,1755540652410,-1000.0,0.00021866,2]
[380097556,1755540652420,-175.57478707,0.000219,2]
[380097557,1755540652429,-480.0,0.00021917,2]
[380097558,1755540652438,-480.0,0.00021917,2]
[380097559,1755540652448,-480.0,0.00021917,2]
[380097560,1755540652458,-480.0,0.00021917,2]
[380097561,1755540652467,-492.16,0.00021917,2]
[380097562,1755540652476,-480.0,0.00021917,2]
[380097563,1755540652486,-480.0,0.00021917,2]
[380097564,1755540652495,-480.0,0.00021917,2]
[380097565,1755540652504,-480.0,0.00021917,2]
[380097566,1755540652514,-480.0,0.00021917,2]
[380097567,1755540652523,-525.31,0.00021917,2]
[380097568,1755540652534,-1144.44,0.00021917,2]
[380097569,1755540652543,-2196.43,0.00021917,2]
[380097570,1755540652553,-509.88,0.00021917,2]
[380097571,1755540652562,-480.0,0.00021917,2]
[380097572,1755540652572,-480.0,0.00021917,2]
[380097573,1755540652581,-2460.24,0.00021917,2]
[380097574,1755540652591,-1025.25,0.00021917,2]
[380097575,1755540652600,-2037.63,0.00021917,2]
[380097576,1755540652610,-480.0,0.00021917,2]
[380097577,1755540652619,-480.0,0.00021917,2]
[380097578,1755540652628,-956.52,0.00021917,2]
[380097579,1755540652637,-480.0,0.00021917,2]
[380097580,1755540652649,-912.8,0.00021917,2]
[380097581,1755540652659,-1865.16,0.00021917,2]
[380097582,1755540652668,-3154.44,0.00021917,2]
[380097583,1755540652677,-1323.13,0.00021917,2]
[380097584,1755540652686,-1226.57,0.00021917,2]
[380097585,1755540652695,-480.0,0.00021917,2]
[380097586,1755540652705,-480.0,0.00021917,2]
[380097587,1755540652714,-365.18873082,0.00021917,2]
[380097588,1755540652723,-366.70598491,0.00021917,2]
[380097589,1755540652733,-480.0,0.00021917,2]
[380097590,1755540652743,-578.28,0.00021917,2]
[380097591,1755540652752,-578.32,0.00021917,2]
[380097592,1755540652761,-878.1,0.00021917,2]
[380097593,1755540652771,-1482.03,0.00021917,2]
[380097594,1755540652780,-862.45,0.00021917,2]
[380097595,1755540652790,-480.0,0.00021917,2]
[380097596,1755540652803,-480.0,0.00021917,2]
[380097597,1755540652813,-1075.46,0.00021917,2]
[380097598,1755540652823,-520.78,0.00021917,2]
[380097599,1755540652832,-480.0,0.00021917,2]
[380097600,1755540652843,-528.31,0.00021917,2]
[380097601,1755540652852,-485.74,0.00021917,2]
[380097602,1755540652862,-480.0,0.00021917,2]
[380097603,1755540652872,-480.0,0.00021917,2]
[380097604,1755540652884,-705.58,0.00021917,2]
[380097605,1755540652894,-480.0,0.00021917,2]
[380097606,1755540652903,-480.0,0.00021917,2]
[380097607,1755540652913,-480.0,0.00021917,2]
[380097608,1755540652923,-260.0,0.00021968,2]
[380097609,1755540652932,-4773.85318233,0.00021978,2]
[380097610,1755540652941,-3192.26,0.00022,7]
[380097611,1755540652951,-927.18,0.00022,7]
[380097612,1755540652960,-18964.43,0.00022,2]
[380097613,1755540652970,-151.0,0.00022,4]
[380097614,1755540652979,-151.0,0.00022,4]
[380097615,1755540652988,-151.0,0.00022,7]
[380097616,1755540652997,-151.0,0.00022,7]
[380097617,1755540653008,-151.0,0.00022,7]
[380097618,1755540653017,-151.0,0.00022,7]
[380097619,1755540653026,-151.0,0.00022,7]
[380097620,1755540653035,-527.712994,0.00022,7]
[380097621,1755540653045,-527.712994,0.00022,7]
[380097622,1755540653054,-183.0,0.00022,2]
[380097623,1755540653064,-151.0,0.00022,7]
[380097624,1755540653073,-260.0,0.00022036,2]
[380097625,1755540653083,-500.0,0.00022052,2]
[380097626,1755540653093,-500.0,0.00022052,2]
[380097627,1755540653102,-500.0,0.00022052,2]
[380097628,1755540653112,-1034.77245163,0.00022076,2]
[380097629,1755540653122,-500.0,0.00022096,2]
[380097630,1755540653132,-500.0,0.00022096,2]
[380097631,1755540653141,-151.0,0.00022096,7]
[380097632,1755540653151,-151.0,0.00022096,7]
[380097633,1755540653160,-200.08,0.000221,2]
[380097634,1755540653170,-496.46172863,0.00022105,2]
[380097635,1755540653179,-160.8129855,0.00022137,2]
[380097636,1755540653189,-160.8129855,0.00022137,2]
[380097637,1755540653198,-360.6998151,0.00022137,2]
[380097638,1755540653207,-321.5985394,0.00022137,2]
[380097639,1755540653217,-160.8129855,0.00022137,2]
[380097640,1755540653227,-260.0,0.00022166,2]
[380097641,1755540653236,-480.0,0.00022191,2]
[380097642,1755540653246,-480.0,0.00022191,2]
[380097643,1755540653257,-480.0,0.00022191,2]
[380097644,1755540653267,-480.0,0.00022191,2]
[380097645,1755540653276,-492.16,0.00022191,2]
[380097646,1755540653286,-480.0,0.00022191,2]
[380097647,1755540653295,-151.0,0.00022191,7]
[380097648,1755540653305,-151.0,0.00022191,7]
[380097649,1755540653314,-151.0,0.00022191,7]
[380097650,1755540653324,-151.0,0.00022191,7]
[380097651,1755540653333,-480.0,0.00022191,2]
[380097652,1755540653343,-151.0,0.00022191,7]
[380097653,1755540653353,-151.0,0.00022191,7]
[380097654,1755540653362,-151.0,0.00022191,7]
[380097655,1755540653372,-512.27,0.00022191,2]
[380097656,1755540653381,-480.0,0.00022191,2]
[380097657,1755540653390,-480.0,0.00022191,2]
[380097658,1755540653399,-151.0,0.00022191,7]
[380097659,1755540653409,-151.0,0.00022191,7]
[380097660,1755540653419,-525.31,0.00022191,2]
[380097661,1755540653427,-151.0,0.00022191,7]
[380097662,1755540653437,-1144.44,0.00022191,2]
[380097663,1755540653446,-2196.43,0.00022191,2]
[380097664,1755540653456,-509.88,0.00022191,2]
[380097665,1755540653465,-480.0,0.00022191,2]
[380097666,1755540653474,-421.64465715,0.00022191,2]
[380097667,1755540653483,-2460.24,0.00022191,2]
[380097668,1755540653492,-1025.25,0.00022191,2]
[380097669,1755540653502,-2037.63,0.00022191,2]
[380097670,1755540653511,-480.0,0.00022191,2]
[380097671,1755540653521,-480.0,0.00022191,2]
[380097672,1755540653530,-151.0,0.00022191,7]
[380097673,1755540653539,-151.0,0.00022191,7]
[380097674,1755540653549,-151.0,0.00022191,7]
[380097675,1755540653559,-956.52,0.00022191,2]
[380097676,1755540653569,-480.0,0.00022191,2]
[380097677,1755540653578,-151.0,0.00022191,7]
[380097678,1755540653587,-912.8,0.00022191,2]
[380097679,1755540653597,-1865.16,0.00022191,2]
[380097680,1755540653606,-3154.44,0.00022191,2]
[380097681,1755540653615,-151.0,0.00022191,7]
[380097682,1755540653624,-1323.13,0.00022191,2]
[380097683,1755540653634,-1226.57,0.00022191,2]
[380097684,1755540653643,-480.0,0.00022191,2]
[380097685,1755540653652,-235.407001,0.00022191,7]
[380097686,1755540653661,-151.0,0.00022191,7]
[380097687,1755540653670,-480.0,0.00022191,2]
[380097688,1755540653679,-235.407001,0.00022191,7]
[380097689,1755540653688,-480.0,0.00022191,2]
[380097690,1755540653697,-151.0,0.00022191,7]
[380097691,1755540653706,-151.0,0.00022191,7]
[380097692,1755540653716,-151.0,0.00022191,7]
[380097693,1755540653725,-578.28,0.00022191,2]
[380097694,1755540653735,-578.32,0.00022191,2]
[380097695,1755540653744,-878.1,0.00022191,2]
[380097696,1755540653753,-1482.03,0.00022191,2]
[380097697,1755540653763,-862.45,0.00022191,2]
[380097698,1755540653772,-480.0,0.00022191,2]
[380097699,1755540653780,-222.066546,0.00022191,7]
[380097700,1755540653789,-167.820244,0.00022191,7]
[380097701,1755540653801,-167.820244,0.00022191,7]
[380097702,1755540653810,-480.0,0.00022191,2]
[380097703,1755540653821,-1075.46,0.00022191,2]
[380097704,1755540653830,-151.0,0.00022191,7]
[380097705,1755540653840,-151.0,0.00022191,7]
[380097706,1755540653849,-241.165282,0.00022191,7]
[380097707,1755540653858,-241.165282,0.00022191,7]
[380097708,1755540653867,-520.78,0.00022191,2]
[380097709,1755540653877,-480.0,0.00022191,2]
[380097710,1755540653887,-528.31,0.00022191,2]
[380097711,1755540653896,-485.74,0.00022191,2]
[380097712,1755540653905,-480.0,0.00022191,2]
[380097713,1755540653914,-209.73910949,0.00022191,2]
[380097714,1755540653924,-480.0,0.00022191,2]
[380097715,1755540654008,-705.58,0.00022191,2]
[380097716,1755540654018,-503.02,0.00022191,2]
[380097717,1755540654028,-480.0,0.00022191,2]
[380097718,1755540654037,-260.0,0.00022198,2]
[380097719,1755540654047,-168.0,0.00022228,2]
[380097720,1755540654057,-260.0,0.00022306,2]
[380097721,1755540654067,-260.0,0.00022378,2]
[380097722,1755540654079,-4773.85318233,0.00022394,2]
[380097723,1755540654088,-500.0,0.00022395,2]
[380097724,1755540654098,-500.0,0.00022395,2]
[380097725,1755540654107,-500.0,0.00022395,2]
[380097726,1755540654117,-151.0,0.000224,5]
[380097727,1755540654127,-225.73371381,0.00022414,2]
[380097728,1755540654136,-1500.0,0.00022414,2]
[380097729,1755540654146,-500.0,0.00022414,2]